bitfinex/quotes_SOLUSD_20250814
["timestamp","ask_amount","ask_price","bid_price","bid_amount"]
[1755185520434,26.66,195.88,195.8,5.10725229]
[1755185520637,17.97660954,195.86,195.8,23.08386183]
[1755185521027,26.66,195.88,195.8,5.10725229]
[1755185521236,17.97660954,195.87,195.81,17.97660954]
[1755185521437,59.95562754,195.88,195.82,17.97660954]
[1755185521639,17.97660954,195.84,195.8,5.10725229]
[1755185521821,0.7,195.83,195.78,5.10777403]
[1755185522330,23.11186485,195.85,195.79,17.97660954]
[1755185522646,17.97660954,195.84,195.78,5.10777403]
[1755185522826,17.97660954,195.83,195.78,5.10777403]
[1755185523033,5.11103591,195.85,195.82,17.97660954]
[1755185523234,26.7,195.88,195.83,17.97660954]
[1755185523535,15.317454,195.89,195.83,0.69]
[1755185523722,18.67660954,195.92,195.85,17.97660954]
[1755185524052,17.97660954,195.91,195.86,5.10568773]
[1755185524218,17.97660954,195.92,195.86,23.08229727]
[1755185524423,60.13660954,195.93,195.87,17.97660954]
[1755185524620,15.313545,195.94,195.89,17.97660954]
[1755185524820,17.97660954,195.95,195.89,17.97660954]
[1755185525021,17.97660954,195.95,195.88,17.97660954]
[1755185525236,57.4712,195.97,195.89,17.97660954]
[1755185525439,41.46,195.97,195.88,0.69]
[1755185525744,41.46,195.97,195.92,17.97660954]
[1755185525951,4.97826057,195.97,195.93,5.10386362]
[1755185526135,0.7,196.01,195.95,17.97660954]
[1755185526326,17.97660954,196.0,195.94,17.97660954]
[1755185526638,5.05949769,196.0,195.93,23.08047316]
[1755185526952,17.97660954,195.95,195.88,23.08177596]
[1755185527136,17.97660954,195.95,195.88,5.10516642]
[1755185527337,0.7,195.96,195.88,23.08177596]
[1755185527563,17.97660954,195.94,195.88,23.08177596]
[1755185528059,17.97660954,195.89,195.84,5.10620915]
[1755185528251,18.67660954,195.88,195.84,5.10620915]
[1755185528429,0.7,195.92,195.84,17.87173202]
[1755185528629,17.97660954,195.91,195.84,36.53834156]
[1755185529034,18.67660954,195.92,195.86,17.97660954]
[1755185529347,17.97660954,195.94,195.88,17.97660954]
[1755185529525,0.7,195.99,195.93,17.97660954]
[1755185529726,0.7,195.99,195.94,17.97660954]
[1755185529925,18.67660954,195.99,195.95,5.10334268]
[1755185530155,18.67660954,195.98,195.93,5.10386362]
[1755185530332,17.97660954,195.96,195.87,12.76341019]
[1755185530533,17.97660954,195.96,195.89,17.97660954]
[1755185530748,17.97660954,195.95,195.89,17.97660954]
[1755185531054,17.97660954,195.96,195.87,12.76341019]
[1755185531244,17.97660954,195.92,195.87,5.10542706]
[1755185531427,0.7,195.91,195.86,17.97660954]
[1755185531624,0.7,195.93,195.86,17.97660954]
[1755185531828,0.7,195.96,195.84,43.87173202]
[1755185532056,17.97660954,195.95,195.89,17.97660954]
[1755185532259,17.97660954,195.94,195.88,17.97660954]
[1755185532551,17.97660954,195.93,195.87,17.97660954]
[1755185532934,17.97660954,195.9,195.81,0.69]
[1755185533132,17.97660954,195.9,195.84,17.97660954]
[1755185533333,17.97660954,195.9,195.84,43.97660954]
[1755185533756,17.97660954,195.9,195.84,17.97660954]
[1755185534057,17.97660954,195.89,195.84,5.10620915]
[1755185534225,0.7,195.89,195.84,5.10620915]
[1755185534428,17.97660954,195.86,195.8,17.97660954]
[1755185534951,17.97660954,195.9,195.84,17.97660954]
[1755185535154,43.97660954,195.91,195.85,17.97660954]
[1755185535456,26.0,195.91,195.85,17.97660954]
[1755185535656,56.715109,195.92,195.83,0.69]
[1755185535861,15.315109,195.92,195.87,17.97660954]
[1755185536074,17.97660954,195.93,195.87,17.97660954]
[1755185536362,0.06,195.9,195.87,17.97660954]
[1755185536562,0.06,195.9,195.88,17.97660954]
[1755185536732,0.06,195.9,195.84,18.56173202]
[1755185536934,0.06,195.9,195.87,17.97660954]
[1755185537131,0.06,195.9,195.88,17.97660954]
[1755185537334,0.06,195.9,195.84,18.56173202]
[1755185537536,0.06,195.9,195.84,5.79620915]
[1755185537761,0.06,195.9,195.84,5.10620915]
[1755185538061,0.06,195.9,195.85,17.97660954]
[1755185538264,0.06,195.9,195.84,5.10620915]
[1755185538465,17.97660954,195.88,195.79,0.69]
[1755185538636,0.7,195.89,195.79,0.69]
[1755185538637,17.97660954,195.87,195.81,17.97660954]
[1755185538955,17.97660954,195.85,195.79,90.46412269]
[1755185539167,17.97660954,195.85,195.79,64.46412269]
[1755185539538,17.97660954,195.85,195.79,46.48751315]
[1755185539742,17.97660954,195.85,195.79,64.46412269]
[1755185539942,17.97660954,195.83,195.78,5.13771658]
[1755185540141,17.97660954,195.8,195.78,0.03]
[1755185540768,18.67660954,195.86,195.79,17.97660954]
[1755185540962,46.46494341,195.89,195.81,17.97660954]
[1755185540963,17.97660954,195.87,195.81,17.97660954]
[1755185541175,17.97660954,195.83,195.78,0.03]
[1755185541338,0.7,195.82,195.78,0.03]
[1755185541738,17.97660954,195.81,195.78,0.03]
[1755185542172,18.67660954,195.8,195.78,0.03]
[1755185542344,18.67660954,195.79,195.78,0.03]
[1755185543344,17.97660954,195.81,195.78,0.03]
[1755185543548,86.03660954,195.83,195.78,0.03]
[1755185543746,17.97660954,195.81,195.78,0.03]
[1755185544145,41.36,195.83,195.78,5.13777403]
[1755185544338,43.97660954,195.85,195.78,5.13777403]
[1755185544537,17.97660954,195.85,195.79,17.97660954]
[1755185545348,41.34,195.88,195.8,17.97660954]
[1755185545546,59.31660954,195.88,195.82,17.97660954]
[1755185545744,59.31660954,195.88,195.8,80.39]
[1755185545745,17.97660954,195.87,195.81,17.97660954]
[1755185545948,17.97660954,195.87,195.81,79.7]
[1755185546152,17.97660954,195.84,195.8,79.7]
[1755185546355,17.97660954,195.83,195.79,5.10726558]
[1755185546562,17.97660954,195.84,195.79,5.10726558]
[1755185547358,0.7,195.86,195.79,5.10726558]
[1755185547669,17.97660954,195.84,195.78,102.81435179]
[1755185548754,5.80583467,195.86,195.78,102.81435179]
[1755185548970,17.97660954,195.84,195.78,102.81435179]
[1755185549343,0.7,195.84,195.79,17.97660954]
[1755185549545,5.10583467,195.86,195.79,17.97660954]
[1755185549546,0.7,195.86,195.79,17.97660954]
[1755185550076,26.0,195.89,195.82,17.97660954]
[1755185550274,17.97660954,195.88,195.82,17.97660954]
[1755185550454,17.97660954,195.86,195.79,80.39]
[1755185550764,17.97660954,195.85,195.8,5.10725229]
[1755185550970,18.68660954,195.85,195.79,102.7840788]
[1755185551172,17.97660954,195.84,195.79,79.7]
[1755185551381,17.97660954,195.84,195.78,18.00660954]
[1755185551382,17.97660954,195.82,195.78,0.03]
[1755185551672,18.68660954,195.81,195.78,0.03]
[1755185551866,17.97660954,195.82,195.78,0.03]
[1755185552257,0.71,195.82,195.78,0.03]
[1755185552462,18.68660954,195.82,195.78,0.03]
[1755185553444,17.97660954,195.83,195.78,0.03]
[1755185553655,0.06,195.94,195.78,0.03]
[1755185553656,18.68660954,195.87,195.82,17.97660954]
[1755185553850,18.68660954,195.87,195.79,0.71]
[1755185553851,0.71,195.87,195.81,17.97660954]
[1755185554176,0.71,195.87,195.82,17.97660954]
[1755185554372,17.97660954,195.88,195.82,17.97660954]
[1755185554579,5.16464881,195.9,195.85,17.97660954]
[1755185554759,18.68660954,195.89,195.83,23.08282228]
[1755185555467,0.06,195.9,195.85,17.97660954]
[1755185555651,18.03660954,195.9,195.84,17.97660954]
[1755185555857,17.97660954,195.88,195.83,5.10621274]
[1755185556069,0.71,195.87,195.82,23.08329808]
[1755185556378,17.97660954,195.88,195.82,23.08329808]
[1755185556575,18.74660954,195.9,195.84,17.97660954]
[1755185556881,0.06,195.9,195.85,5.10594842]
[1755185557049,18.74660954,195.9,195.85,5.10594842]
[1755185557249,0.77,195.9,195.85,23.08255796]
[1755185557476,18.74660954,195.9,195.85,5.10594842]
[1755185557682,0.06,195.9,195.85,5.10594842]
[1755185557867,0.77,195.9,195.86,17.97660954]
[1755185558171,0.77,195.9,195.85,23.08255796]
[1755185558556,18.74660954,195.9,195.85,5.10594842]
[1755185558879,0.77,195.9,195.85,17.97660954]
[1755185559076,0.06,195.9,195.87,17.97660954]
[1755185559276,0.06,195.9,195.88,17.97660954]
[1755185559496,0.06,195.9,195.85,0.71]
[1755185559777,0.06,195.9,195.89,17.97660954]
[1755185559955,0.06,195.9,195.89,18.68660954]
[1755185560150,0.06,195.9,195.89,17.97660954]
[1755185560952,0.06,195.9,195.89,23.08151535]
[1755185561153,0.06,195.9,195.88,23.0817147]
[1755185561753,0.06,195.9,195.86,5.10568773]
[1755185561954,0.77,195.9,195.85,23.0825373]
[1755185562182,0.06,195.9,195.87,17.97660954]
[1755185562360,0.77,195.9,195.85,23.0825373]
[1755185562675,0.06,195.9,195.85,23.0825373]
[1755185562992,17.97660954,195.88,195.83,46.34639433]
[1755185563280,0.71,195.89,195.84,17.97660954]
[1755185564274,18.68660954,195.89,195.83,64.32300387]
[1755185564499,0.06,195.9,195.85,17.97660954]
[1755185564763,0.06,195.9,195.89,17.97660954]
[1755185564987,0.06,195.9,195.89,23.79151535]
[1755185565767,0.06,195.9,195.89,5.10490581]
[1755185565977,0.06,195.9,195.89,17.97660954]
[1755185567173,0.06,195.9,195.89,23.79151535]
[1755185567377,0.06,195.9,195.89,5.81490581]
[1755185567691,0.06,195.9,195.89,64.99151535]
[1755185567996,0.06,195.93,195.89,149.46999545]
[1755185568167,0.06,195.93,195.92,43.97660954]
[1755185568372,0.06,195.93,195.92,106.41]
[1755185568581,0.06,195.93,195.92,124.38660954]
[1755185569176,0.06,195.93,195.92,129.49073367]
[1755185569369,0.06,195.93,195.92,128.78073367]
[1755185569568,0.06,195.93,195.92,43.97660954]
[1755185569769,0.77,195.93,195.86,12.76393114]
[1755185569991,17.97660954,195.92,195.87,41.18]
[1755185570170,17.97660954,195.89,195.82,5.10673067]
[1755185570476,18.68660954,195.88,195.82,64.26334021]
[1755185570679,0.71,195.88,195.83,17.97660954]
[1755185570901,0.71,195.87,195.82,46.28673067]
[1755185571220,18.68660954,195.86,195.82,41.18]
[1755185571389,0.71,195.85,195.8,5.10721876]
[1755185571593,0.71,195.88,195.81,0.71]
[1755185571820,17.97660954,195.9,195.84,17.97660954]
[1755185572122,17.97660954,195.88,195.8,5.10721876]
[1755185572326,17.97660954,195.85,195.79,23.08411308]
[1755185572508,0.71,195.84,195.79,5.10750354]
[1755185572825,0.71,195.83,195.78,0.03]
[1755185572993,18.68660954,195.82,195.78,0.03]
[1755185573192,26.0,195.86,195.78,18.00660954]
[1755185573193,26.71,195.86,195.78,18.00660954]
[1755185573394,0.71,195.86,195.8,17.97660954]
[1755185573590,0.71,195.86,195.81,17.97660954]
[1755185574031,18.68660954,195.9,195.84,17.97660954]
[1755185574232,0.71,195.9,195.84,17.97660954]
[1755185574530,18.68660954,195.9,195.84,17.97660954]
[1755185574719,0.71,195.9,195.85,17.97660954]
[1755185574917,41.16,195.92,195.87,17.97660954]
[1755185575099,0.71,195.92,195.87,17.97660954]
[1755185575421,0.06,195.93,195.89,17.97660954]
[1755185575716,0.71,195.92,195.89,17.97660954]
[1755185576118,0.06,195.93,195.91,17.97660954]
[1755185576320,0.71,195.92,195.88,17.97660954]
[1755185576627,0.06,195.93,195.89,17.97660954]
[1755185576797,0.06,195.93,195.91,17.97660954]
[1755185576997,0.06,195.93,195.92,17.97660954]
[1755185577319,0.06,195.93,195.92,5.81412413]
[1755185577526,0.06,195.93,195.92,5.10412413]
[1755185577703,0.06,195.93,195.9,5.10444533]
[1755185578030,0.06,195.93,195.92,17.97660954]
[1755185578920,0.06,195.93,195.92,18.68660954]
[1755185579326,0.06,195.93,195.92,23.79073367]
[1755185579705,0.06,195.95,195.94,79.64]
[1755185580025,0.06,195.95,195.94,98.32660954]
[1755185580324,1e-08,195.95,195.94,273.83282511]
[1755185580525,1e-08,195.96,195.95,71.71621557]
[1755185580723,1e-08,195.96,195.95,64.41282511]
[1755185580901,1e-08,196.05,196.02,26.0]
[1755185581099,1e-08,196.05,196.04,17.97660954]
[1755185581330,1e-08,196.05,196.04,18.69660954]
[1755185581498,1e-08,196.05,196.04,38.9038249]
[1755185581899,1e-08,196.05,196.04,20.92721536]
[1755185582120,1e-08,196.05,196.04,38.9038249]
[1755185582517,1e-08,196.05,196.04,69.5138249]
[1755185582722,1e-08,196.05,196.04,38.9038249]
[1755185583106,1e-08,196.05,196.04,20.92721536]
[1755185583317,1e-08,196.05,196.04,20.20721536]
[1755185583521,1e-08,196.05,196.04,79.2838249]
[1755185583947,1e-08,196.05,196.04,59.07660954]
[1755185584104,1e-08,196.05,196.03,5.10126001]
[1755185584301,1e-08,196.05,196.02,17.97660954]
[1755185584516,0.67,196.04,196.0,41.08]
[1755185584735,0.67,196.03,195.96,41.08]
[1755185584945,0.67,196.03,196.02,17.97660954]
[1755185585118,1e-08,196.05,196.02,17.97660954]
[1755185585324,1e-08,196.05,196.04,17.97660954]
[1755185585836,1e-08,196.05,196.04,79.9838249]
[1755185586005,1e-08,196.07,196.05,15.10621557]
[1755185586206,1e-08,196.07,196.06,59.80282511]
[1755185587042,1e-08,196.07,196.06,59.08282511]
[1755185587352,1e-08,196.07,196.06,59.80282511]
[1755185587548,1e-08,196.07,196.06,64.90330455]
[1755185587914,1e-08,196.07,196.06,64.18330455]
[1755185588243,1e-08,196.07,196.04,17.97660954]
[1755185588450,0.67,196.06,196.03,17.97660954]
[1755185588634,17.97660954,196.04,195.9,17.86625828]
[1755185588938,18.64660954,196.03,195.91,41.76]
[1755185589146,0.67,196.03,195.97,43.97660954]
[1755185589327,0.67,196.03,195.98,17.97660954]
[1755185589510,5.77165381,196.02,195.96,59.01660954]
[1755185589712,0.67,196.02,195.99,17.97660954]
[1755185590009,0.67000001,196.07,196.01,17.97660954]
[1755185590213,0.67000001,196.07,196.04,17.97660954]
[1755185591242,1e-08,196.07,196.06,17.97660954]
[1755185591420,1e-08,196.07,196.06,64.11708898]
[1755185591854,0.67000001,196.07,196.05,41.04]
[1755185592136,18.64660954,196.06,196.0,17.97660954]
[1755185592331,0.67,196.06,196.02,17.97660954]
[1755185592634,18.64660954,196.05,195.99,85.01660954]
[1755185592935,1e-08,196.07,195.95,17.97660954]
[1755185592936,0.67,196.04,195.95,17.97660954]
[1755185593143,17.97660954,196.03,195.97,17.97660954]
[1755185593342,0.67,196.02,195.97,17.97660954]
[1755185593523,5.77156641,196.02,195.95,17.97660954]
[1755185593730,18.64660954,196.02,195.96,17.97660954]
[1755185593934,0.67,196.02,195.96,17.97660954]
[1755185594138,18.64660954,196.02,195.96,17.97660954]
[1755185594340,0.67,196.02,195.96,17.97660954]
[1755185594522,0.67,196.02,195.97,17.97660954]
[1755185594723,0.67,196.01,195.96,17.97660954]
[1755185594924,0.67,196.0,195.96,17.97660954]
[1755185595218,0.67,195.99,195.95,17.97660954]
[1755185595420,18.64660954,196.03,195.97,17.97660954]
[1755185595632,0.67,196.03,195.98,5.10256148]
[1755185595840,17.97660954,196.05,195.99,17.97660954]
[1755185596029,31.7705351,196.06,196.0,17.97660954]
[1755185596216,18.64660954,196.06,196.0,17.97660954]
[1755185596539,1e-08,196.07,196.03,17.97660954]
[1755185596746,1e-08,196.07,196.04,17.97660954]
[1755185597327,1e-08,196.07,196.05,17.97660954]
[1755185597643,1e-08,196.07,195.99,26.72]
[1755185597644,1e-08,196.07,196.06,5.10047944]
[1755185597832,1e-08,196.07,196.06,23.07708898]
[1755185598239,1e-08,196.07,196.06,5.10047944]
[1755185598748,1e-08,196.07,196.06,23.07708898]
[1755185598916,1e-08,196.07,196.06,23.79708898]
[1755185599121,1e-08,196.07,196.06,49.79708898]
[1755185599528,1e-08,196.07,196.06,64.90330455]
[1755185600540,1e-08,196.07,196.06,49.07708898]
[1755185600729,1e-08,196.07,196.06,43.97660954]
[1755185600939,1e-08,196.07,196.06,49.07708898]
[1755185601760,1e-08,196.07,196.04,41.0]
[1755185601965,0.67,196.06,195.99,5.10228767]
[1755185602170,0.67,196.06,196.04,17.97660954]
[1755185602325,1e-08,196.07,196.04,17.97660954]
[1755185602847,0.67,196.06,196.02,40.98]
[1755185603042,1e-08,196.07,196.03,17.97660954]
[1755185603243,0.67000001,196.07,196.03,17.97660954]
[1755185603734,0.67,196.06,196.02,40.98]
[1755185603936,17.97660955,196.07,195.95,15.82621557]
[1755185603937,1e-08,196.07,195.95,0.72]
[1755185604239,17.97660954,196.03,195.97,17.97660954]
[1755185604561,26.00000001,196.07,195.96,40.96]
[1755185604755,17.97660954,196.04,195.98,17.97660954]
[1755185604956,17.97660954,196.05,195.99,17.97660954]
[1755185605264,1e-08,196.07,196.01,17.97660954]
[1755185605437,1e-08,196.07,196.0,40.96]
[1755185605628,1e-08,196.07,196.05,17.97660954]
[1755185605828,1e-08,196.07,196.05,97.67660954]
[1755185606140,0.67,196.06,196.02,79.7]
[1755185606349,1e-08,196.07,196.05,17.97660954]
[1755185606549,1e-08,196.07,196.06,17.97660954]
[1755185606856,1e-08,196.07,196.06,79.7]
[1755185607056,1e-08,196.07,196.06,102.77708898]
[1755185607251,1e-08,196.07,196.06,84.80047944]
[1755185607449,1e-08,196.07,196.06,102.77708898]
[1755185607653,1e-08,196.07,196.06,79.7]
[1755185608050,0.67000001,196.07,196.06,79.7]
[1755185608233,0.67000001,196.07,196.04,40.96]
[1755185608444,0.67000001,196.07,196.06,17.97660954]
[1755185608445,1e-08,196.07,196.06,17.97660954]
[1755185608754,1e-08,196.07,196.06,18.69660954]
[1755185609075,1e-08,196.07,196.06,23.79708898]
[1755185609457,1e-08,196.07,196.06,5.10047944]
[1755185609774,1e-08,196.07,196.06,17.97660954]
[1755185610390,1e-08,196.07,196.05,23.07732969]
[1755185610679,1e-08,196.07,196.04,138.63660954]
[1755185610865,0.72000001,196.07,196.04,120.66]
[1755185611874,1e-08,196.07,196.04,102.77754019]
[1755185612175,1e-08,196.07,196.04,84.80093065]
[1755185612351,1e-08,196.07,196.04,102.77754019]
[1755185612558,1e-08,196.07,196.04,84.80093065]
[1755185612760,0.72000001,196.07,196.04,79.7]
[1755185613090,1e-08,196.07,196.04,79.7]
[1755185613378,1e-08,196.07,196.04,103.44738443]
[1755185613579,1e-08,196.07,196.04,125.72077489]
[1755185613745,1e-08,196.07,196.04,143.69738443]
[1755185613951,1e-08,196.07,196.06,43.97660954]
[1755185614153,1e-08,196.07,196.06,85.56660954]
[1755185614371,1e-08,196.07,196.06,345.38282511]
[1755185614681,1e-08,196.07,196.06,115.50660954]
[1755185614884,1e-08,196.07,196.06,84.89660954]
[1755185615259,1e-08,196.07,196.06,94.60708898]
[1755185615579,18.69660955,196.07,196.0,5.10204081]
[1755185615787,18.69660955,196.07,195.96,0.67]
[1755185615788,17.97660954,196.03,195.96,5.10302396]
[1755185615998,17.97660954,196.0,195.94,35.74346056]
[1755185616205,0.72,195.99,195.94,0.03]
[1755185616703,26.0,195.96,195.94,0.03]
[1755185616861,18.69660954,195.95,195.94,0.03]
[1755185617057,0.72,195.95,195.94,0.03]
[1755185617292,23.79995222,195.95,195.94,0.03]
[1755185617972,18.69660954,195.95,195.94,0.03]
[1755185618461,0.72,195.95,195.94,0.03]
[1755185618660,17.97660954,195.96,195.94,0.03]
[1755185619065,17.97660954,195.98,195.94,0.03]
[1755185619271,0.72,195.99,195.94,0.03]
[1755185619475,17.97660954,195.99,195.94,0.03]
[1755185619679,17.97660954,195.95,195.94,0.03]
[1755185619892,26.0,195.93,195.92,0.03]
[1755185620080,44.69660954,195.93,195.9,0.03]
[1755185620260,0.72,195.92,195.9,0.03]
[1755185620467,18.69660954,195.91,195.9,0.03]
[1755185620772,18.69660954,195.91,195.89,0.03]
[1755185620977,59.80282511,195.9,195.89,0.03]
[1755185621279,64.90747033,195.9,195.89,0.03]
[1755185622994,38.90747033,195.9,195.89,0.03]
[1755185624670,40.95011133,195.9,195.89,0.03]
[1755185624872,81.83011133,195.9,195.89,0.03]
[1755185627281,18.69660954,195.9,195.89,0.03]
[1755185627468,64.68125476,195.9,195.89,0.03]
[1755185627670,66.72358276,195.9,195.89,0.03]
[1755185628001,81.82979833,195.9,195.89,0.03]
[1755185629977,81.10979833,195.9,195.89,0.03]
[1755185630160,58.85660954,195.9,195.89,0.03]
[1755185630787,15.10621557,196.0,195.89,0.7]
[1755185630993,17.97660954,195.95,195.89,0.7]
[1755185631198,17.97660954,195.93,195.89,0.7]
[1755185631401,40.86,195.95,195.9,18.64660954]
[1755185631702,12.75252051,196.04,195.89,0.03]
[1755185631703,17.97660954,195.98,195.91,0.67]
[1755185631897,17.97660954,195.97,195.91,18.64660954]
[1755185632076,17.97660954,195.98,195.92,17.97660954]
[1755185632281,17.97660954,195.98,195.92,18.64660954]
[1755185632597,17.97660954,195.97,195.93,5.10386362]
[1755185632773,40.86,195.99,195.93,84.80386362]
[1755185632973,17.97660954,195.97,195.94,0.67]
[1755185633580,17.97660954,195.95,195.91,79.7]
[1755185633800,17.97660954,195.92,195.89,0.03]
[1755185634100,17.97660954,195.9,195.89,0.03]
[1755185636573,40.84,195.92,195.89,0.7]
[1755185637102,15.10621557,196.01,195.9,0.67]
[1755185637300,12.75265537,196.04,195.93,17.97660954]
[1755185637301,17.97660954,195.99,195.93,17.97660954]
[1755185637491,17.97660954,195.98,195.92,17.97660954]
[1755185637696,40.84,196.0,195.93,0.67]
[1755185637884,17.97660954,195.98,195.93,0.67]
[1755185638090,17.97660954,195.98,195.94,0.67]
[1755185638303,17.97660954,195.99,195.95,5.10334268]
[1755185638505,17.97660954,195.99,195.96,0.67]
[1755185639006,40.84,196.0,195.92,0.67]
[1755185639007,17.97660954,195.97,195.92,0.67]
[1755185639210,17.97660954,195.96,195.93,0.67]
[1755185639416,17.97660954,195.97,195.93,0.67]
[1755185639588,17.97660954,195.95,195.9,5.10464522]
[1755185639791,17.97660954,195.95,195.9,5.77464522]
[1755185639999,17.97660954,195.95,195.91,0.67]
[1755185640388,17.97660954,195.95,195.91,5.7742853]
[1755185640800,17.97660954,195.96,195.92,0.71]
[1755185641005,17.97660954,195.96,195.91,5.1042853]
[1755185641192,17.97660954,195.95,195.91,5.8142853]
[1755185641391,17.97660954,195.95,195.92,0.71]
[1755185641703,17.97660954,195.96,195.92,0.71]
[1755185641887,17.97660954,195.95,195.91,5.1042853]
[1755185642209,17.97660954,195.94,195.9,5.10460798]
[1755185642405,40.8,195.96,195.89,0.03]
[1755185642607,17.97660954,195.9,195.89,0.03]
[1755185642906,26.0,195.97,195.89,0.03]
[1755185642907,17.97660954,195.91,195.89,0.03]
[1755185643088,40.8,195.92,195.89,0.03]
[1755185643089,17.97660954,195.9,195.89,0.03]
[1755185643882,23.80125476,195.9,195.89,0.03]
[1755185644094,64.90747033,195.9,195.89,0.03]
[1755185644299,17.97660954,195.9,195.89,0.03]
[1755185644912,64.90747033,195.9,195.89,0.03]
[1755185645211,64.90747033,195.9,195.89,1e-08]
[1755185645938,38.90747033,195.9,195.89,1e-08]
[1755185646460,33.08282511,195.89,195.88,1e-08]
[1755185646607,15.10621557,195.81,195.78,0.03]
[1755185646941,17.97660954,195.79,195.78,0.03]
[1755185647105,17.97660954,195.79,195.76,0.2]
[1755185647106,59.80282511,195.79,195.76,0.2]
[1755185647315,59.08282511,195.77,195.76,0.2]
[1755185647507,15.10621557,195.72,195.69,0.03]
[1755185647737,15.10621557,195.71,195.69,0.03]
[1755185647906,38.19268714,195.7,195.69,0.03]
[1755185648243,25.85109557,195.7,195.69,0.03]
[1755185649034,40.95731114,195.7,195.69,0.03]
[1755185649249,63.7607016,195.7,195.69,0.03]
[1755185649543,81.73731114,195.7,195.69,0.03]
[1755185650842,2.044624,195.7,195.69,0.03]
[1755185651012,40.76,195.7,195.69,0.03]
[1755185651211,58.73660954,195.7,195.69,0.03]
[1755185651628,63.84647157,195.7,195.69,0.03]
[1755185651826,78.95268714,195.7,195.69,0.03]
[1755185652239,63.84647157,195.7,195.69,0.03]
[1755185652534,58.75660954,195.7,195.69,0.03]
[1755185652751,17.97660954,195.7,195.69,0.03]
[1755185652915,0.72,195.8,195.69,18.71660954]
[1755185653111,17.97660954,195.75,195.7,0.71]
[1755185653310,58.75660954,195.74,195.71,0.71]
[1755185653527,17.97660954,195.72,195.69,0.03]
[1755185653718,17.97660954,195.7,195.69,0.03]
[1755185653926,58.75660954,195.7,195.69,0.03]
[1755185654142,40.78,195.7,195.69,0.03]
[1755185654320,58.75660954,195.7,195.69,0.74]
[1755185654640,26.0,195.75,195.69,0.74]
[1755185654641,17.97660954,195.72,195.69,0.74]
[1755185654836,17.97660954,195.73,195.7,0.71]
[1755185655024,17.97660954,195.71,195.69,0.03]
[1755185655221,40.78,195.73,195.69,0.03]
[1755185655422,17.97660954,195.71,195.69,0.74]
[1755185655621,40.76,195.7,195.69,0.74]
[1755185655807,17.97660954,195.72,195.69,0.74]
[1755185656019,17.97660954,195.78,195.71,17.97660954]
[1755185656212,15.82621557,195.84,195.72,0.71]
[1755185656213,5.0853187,195.79,195.72,0.71]
[1755185656522,17.97660954,195.76,195.72,0.71]
[1755185656720,40.76,195.78,195.73,0.71]
[1755185656917,58.73660954,195.78,195.74,0.71]
[1755185657363,17.97660954,195.77,195.74,0.71]
[1755185657665,17.97660954,195.77,195.73,5.10882388]
[1755185657666,40.76,195.78,195.73,5.10882388]
[1755185657828,58.73660954,195.78,195.75,0.71]
[1755185658026,58.73660954,195.78,195.76,0.71]
[1755185658253,17.97660954,195.77,195.71,0.71]
[1755185658558,17.97660954,195.72,195.69,0.03]
[1755185658761,17.97660954,195.7,195.69,0.03]
[1755185659641,23.08647157,195.7,195.69,0.03]
[1755185659818,17.97660954,195.7,195.69,0.03]
[1755185660531,23.08647157,195.7,195.69,0.03]
[1755185661055,38.91268714,195.7,195.69,0.03]
[1755185661271,38.91268714,195.7,195.69,1e-08]
[1755185661557,26.0,195.66,195.63,0.03]
[1755185661743,26.0,195.66,195.61,0.03]
[1755185661744,26.0,195.62,195.61,0.03]
[1755185661920,26.0,195.59,195.55,0.03]
[1755185662121,85.43660954,195.59,195.55,0.03]
[1755185662556,100.54282511,195.59,195.55,0.03]
[1755185663256,105.65556093,195.59,195.55,0.03]
[1755185663433,15.10621557,195.58,195.55,0.03]
[1755185663745,59.08282511,195.56,195.55,0.03]
[1755185663949,100.54282511,195.56,195.55,0.03]
[1755185664459,100.54282511,195.56,195.44,0.71]